Cogmind - Beta 16 @@@ ROGUE MODE // 2025.11.21 @ 14:44:06 Player: ChromeKnight Result: Destroyed by K0-NG0(R) with Subdweller Laser Performance ------------- Evolutions (0) 0 Regions Visited (3) 600 Robots Destroyed (24) 120 Value Destroyed (536) 536 Prototype IDs (0) 0 Alien Tech Used (0) 0 Bonus (-153) -153 TOTAL SCORE: 1103 Bonus ------- Friendly Fire -153 Cogmind --------- Core Integrity 0/250 Matter 297/300 Energy 160/160 System Corruption 1% Temperature Cool (6) Movement Core (200) Ox3 Location -10/Subcaves Parts ------- > --- POWER (1) -------- Light Nuclear Core > --- PROPULSION (2) --- (None) > --- UTILITY (2) ------ Improved Heat Sink Small Storage Unit > --- WEAPON (2) ------- Light Assault Rifle > --- INVENTORY (8) ---- Improved Heat Sink Improved Heat Sink Structural Scanner Structural Scanner Terrain Scanner Terrain Scanner Improved Terrain Scanner Terrain Scan Processor Peak State ------------ > --- POWER ------------ Light Nuclear Core > --- PROPULSION ------- Light Treads Light Treads > --- UTILITY ---------- Improved Heat Sink Small Storage Unit > --- WEAPON ----------- Medium Laser Particle Gun > --- INVENTORY -------- Improved Heat Sink Improved Heat Sink Structural Scanner Structural Scanner Terrain Scanner Terrain Scanner Improved Terrain Scanner Terrain Scan Processor [Rating: 13] Favorites ----------- Power Light Ion Engine Engine Light Ion Engine Power Core Light Nuclear Core Propulsion Light Treads Treads Light Treads Utility Small Storage Unit Device Improved Heat Sink Storage Small Storage Unit Protection Light Armor Plating Weapon Medium Laser Energy Gun Medium Laser Ballistic Gun Light Assault Rifle Build | -11 -10 -10 -10 ------- Run | Yrd Mat Min Sub Slots Evolved . | . . . . Power . | . . . . Propulsion . | . . . . Utility . | . . . . Weapon . | . . . . Parts Attached 17 | 6 3 7 1 Power 4 | 1 1 2 . Engine 3 | 1 1 1 . Core 1 | . . 1 . Reactor . | . . . . Propulsion 2 | 2 . . . Treads 2 | 2 . . . Leg . | . . . . Wheel . | . . . . Hover . | . . . . Flight . | . . . . Utility 5 | 1 2 2 . Device 3 | . 1 2 . Storage 1 | 1 . . . Processor . | . . . . Hackware . | . . . . Protection 1 | . 1 . . Artifact . | . . . . Weapon 6 | 2 . 3 1 Energy Gun 5 | 2 . 3 . Energy Cannon . | . . . . Ballistic Gun 1 | . . . 1 Ballistic Cannon . | . . . . Launcher . | . . . . Special Weapon . | . . . . Impact Weapon . | . . . . Slashing Weapon . | . . . . Piercing Weapon . | . . . . Special Melee Weapon . | . . . . Unidentified Prototypes . | . . . . Parts Lost 6 | . 1 1 4 Power 2 | . 1 1 . Propulsion 2 | . . . 2 Utility . | . . . . Weapon 2 | . . . 2 Highest Loss Streak 4 | . 1 1 4 To Critical Strikes . | . . . . Average Backups 4 | . 2 7 8 Power . | . . . . Propulsion . | . . . . Utility 4 | . 2 7 8 Weapon . | . . . . Tool/Special . | . . . . Unused Backups 6 | . . . 6 Power . | . . . . Propulsion . | . . . . Utility 6 | . . . 6 Weapon . | . . . . Tool/Special . | . . . . Average Slot Usage (%) 87 | . 82 98 68 Engine 6 | . 4 11 . Core 1 | . . 1 14 Treads 26 | . 28 28 7 Device 8 | . 3 14 14 Storage 14 | . 14 14 14 Protection 1 | . 3 . . Energy Gun 26 | . 28 28 9 Peak Build Rating 13 | 6 7 13 13 Average Rating 7 | 4 5 10 9 On Entrance 6 | . 6 7 13 Avg Prop Armor Cover (%) . | . . . . Naked Turns . | . . . . Heaviest Build 16 | 11 12 16 12 Greatest Support 40 | 40 40 40 3 Greatest Overweight (x) 3 | . . . 3 Average Overweight (x) . | . . . 3 Largest Inventory Capacity 8 | 8 8 8 8 Average Capacity 7 | 7 8 8 8 Most Carried 8 | . 6 8 8 Average Carried 4 | . 2 7 8 Final Capacity 8 | 8 8 8 8 Final Carried 8 | . 6 8 8 Class Distribution -------------------- 86% | Mutant 13% | Scavenger-Mutant Dominant Class ---------------- Mutant | -10/Materials Mutant | -10/Mines Mutant | -10/Subcaves Resources | -11 -10 -10 -10 ----------- Run | Yrd Mat Min Sub Matter Collected 453 | 260 101 80 12 Remotely . | . . . . Salvage Created 933 | . 447 428 58 Parts 52 | . 28 21 3 Haulers Intercepted . | . . . . Recyclers Shooed 2 | . 1 1 . Parts Field Recycled . | . . . . Retrieved Matter . | . . . . Parts Self-Destructed 2 | . . . 2 Prevented . | . . . . Parts Restored . | . . . . Kills | -11 -10 -10 -10 ------- Run | Yrd Mat Min Sub Combat Hostiles Destroyed 16 | . 8 6 2 Guns 16 | . 8 6 2 Classes Destroyed 7 | . 5 1 1 Worker 1 | . . 1 . Builder 1 | . 1 . . Tunneler 2 | . 1 1 . Recycler 3 | . 2 1 . Swarmer 4 | . 3 . 1 Grunt 11 | . 5 6 . Sentry 1 | . . . 1 Thug 1 | . . 1 . Best Kill Streak 3 | . 3 2 2 Combat Bots Only 3 | . 3 2 2 Max Kills in Single Turn 1 | . 1 1 1 Gunslinging . | . . . . Exploded . | . . . . Melee . | . . . . Uniques/NPCs Destroyed . | . . . . Combat | -11 -10 -10 -10 -------- Run | Yrd Mat Min Sub Hostile Shots Fired 111 | . 40 37 34 Missed 28 | . 10 11 7 Hits 83 | . 30 26 27 Projectile 83 | . 30 26 27 Critical Strikes 2 | . . 1 1 Damage Taken 1108 | . 366 345 397 Core 271 | . 64 52 155 Absorbed by Shields . | . . . . Core Remaining (%) 100 | 100 . . . Volleys Fired 74 | . 41 20 13 Largest 2 | . 2 2 2 Hottest 115 | . 90 115 115 Shots Fired 137 | . 76 41 20 Gun 137 | . 76 41 20 Cannon . | . . . . Launcher . | . . . . Special . | . . . . Kinetic 5 | . . . 5 Thermal 132 | . 76 41 15 Explosive . | . . . . Electromagnetic . | . . . . Robot Hit Streak 16 | . 11 16 7 Robot Miss Streak 5 | . 2 2 5 Penetration Max . | . . . . Secondary Targets 3 | . 1 2 . Max Gunslinging Chain 1 | . 1 1 . Shots Hit Robots 99 | . 53 34 12 Core Hits 44 | . 20 20 4 Critical Kills . | . . . . Critical Parts Destroyed . | . . . . Critical Strikes 4 | . 3 1 . Burn 4 | . 3 1 . Melee Attacks . | . . . . Impact . | . . . . Slashing . | . . . . Piercing . | . . . . Sneak Attacks . | . . . . Combat Hostiles . | . . . . Follow-up Attacks . | . . . . Damage Inflicted 1256 | . 636 477 143 Guns 1253 | . 636 474 143 Cannons . | . . . . Explosions . | . . . . Melee . | . . . . Ramming 3 | . . 3 . Kinetic 28 | . . . 28 Thermal 1225 | . 636 474 115 Explosive . | . . . . Electromagnetic . | . . . . Impact . | . . . . Slashing . | . . . . Piercing . | . . . . Highest Corruption 1 | . 1 1 1 Average Corruption 1 | . 1 1 1 Corruption Purged . | . . . . Corruption Blocked . | . . . . Effects 12 | . 8 3 1 Message Errors 2 | . 1 1 . Matter Fused 4 | . 4 . . Heat Flow Errors 1 | . 1 . . Energy Discharges 1 | . 1 . . Data Loss (minor) 1 | . . . 1 Data Loss (major) 1 | . . 1 . Misfires 1 | . . 1 . Weapon Failures 1 | . 1 . . Overload Shots . | . . . . Overflow Damage . | . . . . Projectiles . | . . . . Explosions . | . . . . Melee . | . . . . Knockbacks . | . . . . Impact . | . . . . Kinetic . | . . . . Secondary . | . . . . Self-Inflicted Damage . | . . . . Shots . | . . . . Rammed . | . . . . Targets Rammed 1 | . . 1 . Kicked . | . . . . Crushed 1 | . . 1 . Highest Temperature 360 | . 360 96 13 Average Temperature 82 | . 110 37 13 Received Heat Transfer 459 | . 144 213 102 Effects 4 | . 4 . . Energy Bleed 1 | . 1 . . Interference 2 | . 2 . . Matter Decay 1 | . 1 . . Siege Activations . | . . . . Martial Activations . | . . . . Shielding Activations . | . . . . Robots Disrupted . | . . . . Combat Hostiles . | . . . . Robots Corrupted . | . . . . Combat Hostiles . | . . . . Parts Fried . | . . . . Impact Corruptions . | . . . . Robots Melted . | . . . . Combat Hostiles . | . . . . Parts Melted 13 | . 7 6 . Heat Transferred 3394 | . 1860 1238 296 Parts Sabotaged . | . . . . Parts Stolen . | . . . . Parts Stripped . | . . . . Power Chain Reactions . | . . . . Alert | -11 -10 -10 -10 ------- Run | Yrd Mat Min Sub Maximum Alert Level . | . . . . Low Security (%) 100 | 100 100 100 . Level 1 . | . . . . Level 2 . | . . . . Level 3 . | . . . . Level 4 . | . . . . Level 5 . | . . . . High Security . | . . . . Max Security . | . . . . Peak Influence 69 | . 62 69 . Initial 19 | . . 19 . Average 22 | . 22 25 . Influence Increases 448 | . 243 165 40 Destroy 0b10 Robot/C 320 | . 160 120 40 Destroy 0b10 Robot/NC 35 | . 20 15 . Destroy Leader 60 | . 30 30 . Successful Hack 18 | . 18 . . Lose Combat Pursuer 15 | . 15 . . Influence Decreases 448 | . 191 195 62 Entered New Map 45 | . . 33 12 Time Decay 373 | . 191 162 20 Lost Part 30 | . . . 30 Squads Dispatched 2 | . 2 . . Investigation 1 | . 1 . . Extermination . | . . . . Reinforcement 1 | . 1 . . Assault . | . . . . Garrison . | . . . . Intercept . | . . . . Searches Triggered . | . . . . Construction Impeded . | . . . . Haulers Reinforced . | . . . . Active Scanning Responses . | . . . . Cargo Convoy Interrupts . | . . . . Stealth | -11 -10 -10 -10 --------- Run | Yrd Mat Min Sub Distress Signals 2 | . 2 . . Communications Jammed . | . . . . Distress Signals . | . . . . Times Spotted 26 | . 15 8 3 Peak Tracking Total 4 | . 4 4 2 Tactical Retreats 1 | . 1 . . Traps | -11 -10 -10 -10 ------- Run | Yrd Mat Min Sub Traps Triggered 2 | . 2 . . Indirectly . | . . . . Trap Hack Attempts . | . . . . Triggered . | . . . . Disarmed . | . . . . Reprogrammed . | . . . . Reused . | . . . . Traps Extracted . | . . . . Installed . | . . . . Triggered . | . . . . Machines | -11 -10 -10 -10 ---------- Run | Yrd Mat Min Sub Machines Disabled . | . . . . Max in Single Turn . | . . . . Machines Repaired . | . . . . Machines Dismantled . | . . . . Machines Sabotaged . | . . . . Overloaded Fab Kills . | . . . . Hacking | -11 -10 -10 -10 --------- Run | Yrd Mat Min Sub Machines Accessed 2 | . 2 . . Terminals 2 | . 2 . . Fabricators . | . . . . Repair Stations . | . . . . Recycling Units . | . . . . Scanalyzers . | . . . . Garrison Access . | . . . . Total Hacks 2 | . 2 . . Successful 2 | . 2 . . Failed . | . . . . Catastrophic . | . . . . Database Lockouts . | . . . . Manual 2 | . 2 . . Terminals 2 | . 2 . . Fabricators . | . . . . Repair Stations . | . . . . Recycling Units . | . . . . Scanalyzers . | . . . . Garrison Access . | . . . . Terminal Hacks . | . . . . Fabricator Hacks . | . . . . Repair Station Hacks . | . . . . Recycling Unit Hacks . | . . . . Scanalyzer . | . . . . Garrison Access Hacks . | . . . . Unauthorized Hacks 2 | . 2 . . Terminals 2 | . 2 . . Skim 2 | . 2 . . Fabricators . | . . . . Repair Stations . | . . . . Recycling Units . | . . . . Scanalyzers . | . . . . Garrison Access . | . . . . Data Cores Recovered . | . . . . Used . | . . . . Hacking Detections . | . . . . Full Trace Events . | . . . . Feedback Events . | . . . . Feedback Blocked . | . . . . Robot Schematics Acquired . | . . . . Robots Built . | . . . . Authchips . | . . . . Time . | . . . . Total Robot Build Rating . | . . . . Part Schematics Acquired . | . . . . Parts Built . | . . . . Authchips . | . . . . Time . | . . . . Total Part Build Rating . | . . . . Part Studies Acquired . | . . . . Parts Repaired . | . . . . Time . | . . . . Parts Recycled . | . . . . Recycled Matter . | . . . . Retrieved Matter . | . . . . Retrieved Components . | . . . . Parts Scanalyzed . | . . . . Part Schematics Acquired . | . . . . Parts Damaged . | . . . . Bothacking | -11 -10 -10 -10 ------------ Run | Yrd Mat Min Sub Used RIF Installer . | . . . . Robots Hacked . | . . . . Non-combat . | . . . . Combat . | . . . . Robot Hacks Applied . | . . . . Relay Couplers Released . | . . . . Fabnet Peak Effective % . | . . . . Robots Rewired . | . . . . Allies Hacked . | . . . . Hacks Repelled . | . . . . Allies | -11 -10 -10 -10 -------- Run | Yrd Mat Min Sub Total Allies . | . . . . Largest Group . | . . . . Highest-Rated Group . | . . . . Highest-Rated Ally . | . . . . Total Orders . | . . . . Ally Attacks . | . . . . Total Damage . | . . . . Kills . | . . . . Allies Corrupted . | . . . . Allies Melted . | . . . . Intel | -11 -10 -10 -10 ------- Run | Yrd Mat Min Sub Active Infowar (turns) . | . . . . Robot Analysis Total . | . . . . Derelict Logs Recovered . | . . . . Drone Launches . | . . . . Drone Recoveries . | . . . . Exploration | -11 -10 -10 -10 ------------- Run | Yrd Mat Min Sub Turns Passed 1155 | 66 608 402 79 Spaces Moved 530 | 42 283 185 20 Core 28 | 8 . . 20 Treads 502 | 34 283 185 . Legs . | . . . . Wheels . | . . . . Hover . | . . . . Flight . | . . . . Fastest Speed 50 | 50 160 160 200 Average Speed 159 | 139 160 160 200 Slowest Speed 200 | 160 160 160 200 Overloaded Moves . | . . . . Propulsion Burnouts . | . . . . Robots Hopped . | . . . . Potential Cave-ins . | . . . . Cave-ins Triggered . | . . . . Exploration Rate (%) 20 | 3 46 30 3 Regions Visited 3 Branch Regions 2 Pre-discovered Areas . | . . . . Known Exits Taken . | . . . . Unknown Exits Taken 3 | 1 1 1 . Scrap Searched . | . . . . Spaces Dug . | . . . . Terrain Destroyed . | . . . . Melee . | . . . . Projectile . | . . . . AOE . | . . . . Terrain Rammed . | . . . . Walls Destroyed . | . . . . Machines Disabled . | . . . . Actions | -11 -10 -10 -10 --------- Run | Yrd Mat Min Sub Total 699 | 47 360 252 40 Wait 66 | . 27 33 6 Move 527 | 41 282 184 20 Hop . | . . . . Pick Up 7 | . 6 1 . Fast Attach 11 | 6 3 1 1 Attach . | . . . . Detach . | . . . . Swap 7 | . . 7 . Drop 6 | . 1 5 . Fire 74 | . 41 20 13 Melee . | . . . . Ram . | . . . . Kick . | . . . . Crush 1 | . . 1 . Escape Stasis . | . . . . Rewire . | . . . . Trap . | . . . . Miscellaneous . | . . . . Route ------- -11/Scrapyard -10/Materials (discovered 3 exits: [*Mat] / [*Min x2]) -10/Mines (discovered 3 exits: [*Mat x2] / [*Sub]) -10/Subcaves History --------- Turn | Location | Event 3 | -11/Scrapyard | Discovered new exit (range 15) 67 | -11/Scrapyard | Entered Materials 249 | -10/Materials | Discovered new exit (range 4) 313 | -10/Materials | Discovered new exit (range 11) 315 | -10/Materials | Build established: Mutant 590 | -10/Materials | Discovered new exit (range 15) 675 | -10/Materials | Entered Mines 686 | -10/Mines | Met a Derelict bent on vengeance 730 | -10/Mines | Discovered new exit (range 6) 828 | -10/Mines | Discovered new exit (range 5) 959 | -10/Mines | Discovered new exit (range 6) 1077 | -10/Mines | Entered Subcaves 1079 | -10/Subcaves | Core integrity fell below 50% 1108 | -10/Subcaves | Core integrity fell below 20% 1129 | -10/Subcaves | Lost 4 parts (2n2w) 1156 | -10/Subcaves | Destroyed by K0-NG0(R) with Subdweller Laser Last Messages --------------- GOAL=ESCAPE 01080_ Lgt. Treads destroyed. 01083_ Destroyed Flight Unit. 01089_ S-10 Pest destroyed. 01091_ Subatomizers dissect the Lgt. Assault Rifle. 01095_ Lgt. Treads destroyed. 01095_ Critical hit (Burn: +37). 01095_ Particle Gun destroyed. 01098_ Med. Laser destroyed. 01104_ Subatomizers dissect the Lgt. Assault Rifle. 01104_ Acquired Lgt. Assault Rifle. 01108_ Y-45 Defender destroyed. 01111_ System corrupted: Component data lost. 01114_ Beam Rifle fries itself beyond repair. 01114_ Acquired 12 matter. 01115_ Subatomizers dissect the Imp. Ion Engine. 01119_ Imp. Ion Engine fries itself beyond repair. Map ----- +----------------------------------------------------+ | ?????????????????????????????????????????????????? | | ?????????????????????????????????????????????????? | | ?????????????????????????????????????????????????? | | ?????????????????????????????????????????????????? | | ?????????????????????????????????????????????????? | | ?????????????????????????????????????????????????? | | ?????????????????????????????????????????????????? | | ?????????????????????????????????????????????????? | | ?????????????????????????????????????????????????? | | ?????????????????????????????????????????????????? | | ?????????????????????????????????????????????????? | | ?????????????????????????????????????????????????? | | ?????????????????????????????????????????????????? | | ?????????????????????????????????????????????????? | | ?????????????????????????????????????????????????? | | ?????????????????????????????????????????????????? | | ?????????????????????????????????????????????????? | | ?????????????????????????????????????????????????? | | ?????????????????????????????????????????????????? | | ?????????????????#######?????????????????????????? | | ?????????##??##### # # "???????????????????????? | | ????????## ### "???????????????????????? | | ?????#### ????????????????????????????? | | ?????# % ## #?????????????????????????????? | | ???# # ########??????????????????????? | | #????# ##@## """"????????????????? | | ??????????## % R """"????????????????? | | ??????????# " ""??????????????? | | ???????# # # ###""" ??????????????? | | ???????# ## #########????????????????????? | | ???????## #????????????????????????????? | | ????????## #???????????????????????????? | | ?????????# #??????????????????????????? | | ?????????# ## ### #??????????????????????????? | | ?????????## ?##??## #?????????????????????????? | | ????????? ??????? #????????????????????????? | | ????????? ???????# #????????????????????????? | | ????????# ????????# #????????????????????????? | | ????????? ?????????###????????????????????????? | | ???????? ????????????????????????????????????? | | ????????? ????????????????????????????????????? | | ??????????? ?????????????????????????????????????? | | ?????????????????????????????????????????????????? | | ?????????????????????????????????????????????????? | | ?????????????????????????????????????????????????? | | ?????????????????????????????????????????????????? | | ?????????????????????????????????????????????????? | | ?????????????????????????????????????????????????? | | ?????????????????????????????????????????????????? | | ?????????????????????????????????????????????????? | +----------------------------------------------------+ Best States ------------- Heat Dissipation 39 Energy Generation 14 Energy Capacity 250 Matter Stores 300 Matter Capacity 300 Sight Range 16 Terrain Scan Density 10 Armor Coverage 150 Evasion (%) 40 Recoil Reduction 2 Item Schematics ----------------- None Robot Schematics ------------------ None Fabricated ------------ Nothing Repaired ---------- Nothing Studied --------- None Alien Tech Used ----------------- None Achievements -------------- None Challenges ------------ None Game ------ Seed EtherialCryofiberBasin Manual? 0 Play Time 00:05:17 Cumulative 569.9 hours Start 2025.11.21 @ 14:37:03 End 2025.11.21 @ 14:44:06 Sessions 1 Manual Loads 0 Difficulty Rogue Special Mode None Game No. 904 Rogue 749 Adventurer 148 Explorer 7 Win Type - Total 27 Types 21/1/4/1/0/0/0/0/0/0 Lore% 81 Gallery% 84 Achievement% 69 Wizard Run 0 Options --------- Layout 1 ASCII 0 Keyboard 0 Movement Numpad Keybinds 0 Fullscreen 2 Font 24/Smallcaps Map View 50x35 Zoom Use 0% Tactical HUD 1 Map Filters NONE Filters NONE Steam 1 RUN: 6c1f7e9e-535f-45e7-8cf6-1f329b616ef2